Cogmind - Beta 16 @@@ ROGUE MODE // 2026.01.11 @ 11:51:47 Player: Glyb Result: Destroyed by H-55 Commando with Gauss Rifle Performance ------------- Evolutions (0) 0 Regions Visited (4) 800 Robots Destroyed (14) 70 Value Destroyed (156) 156 Prototype IDs (0) 0 Alien Tech Used (0) 0 Bonus (0) 0 TOTAL SCORE: 1026 Bonus ------- None Cogmind --------- Core Integrity 0/250 Matter 249/300 Energy 84/100 System Corruption 0% Temperature Cool (0) Movement Walking (120) Location -8/Recycling Parts ------- > --- POWER (1) -------- (None) > --- PROPULSION (2) --- Aluminum Leg Aluminum Leg > --- UTILITY (2) ------ Makeshift Light Armor Plating > --- WEAPON (2) ------- Assault Rifle > --- INVENTORY (5) ---- Ion Engine Aluminum Leg Large Storage Unit Small Battery (100) Peak State ------------ > --- POWER ------------ Light Nuclear Core > --- PROPULSION ------- Aluminum Leg Aluminum Leg > --- UTILITY ---------- Makeshift Light Armor Plating > --- WEAPON ----------- High-powered Shotgun High-powered Shotgun > --- INVENTORY -------- Ion Engine Aluminum Leg Large Storage Unit Small Battery Assault Rifle [Rating: 15] Favorites ----------- Power Light Nuclear Core Engine Ion Engine Power Core Light Nuclear Core Propulsion Aluminum Leg Leg Aluminum Leg Wheel Wheel Utility Large Storage Unit Storage Large Storage Unit Protection Backup Plating I Weapon Small Laser Energy Gun Small Laser Ballistic Gun High-powered Shotgun Build | -11 -10 -10 -10 -8 ------- Run | Yrd Mat Min Sub Rec Slots Evolved . | . . . . . Power . | . . . . . Propulsion . | . . . . . Utility . | . . . . . Weapon . | . . . . . Parts Attached 19 | 6 4 3 3 3 Power 2 | 1 . 1 . . Engine 1 | 1 . . . . Core 1 | . . 1 . . Reactor . | . . . . . Propulsion 5 | 2 2 1 . . Treads . | . . . . . Leg 3 | 2 . 1 . . Wheel 2 | . 2 . . . Hover . | . . . . . Flight . | . . . . . Utility 4 | 1 1 . 2 . Device . | . . . . . Storage 3 | 1 1 . 1 . Processor . | . . . . . Hackware . | . . . . . Protection 1 | . . . 1 . Artifact . | . . . . . Weapon 8 | 2 1 1 1 3 Energy Gun 4 | 2 . 1 1 . Energy Cannon . | . . . . . Ballistic Gun 4 | . 1 . . 3 Ballistic Cannon . | . . . . . Launcher . | . . . . . Special Weapon . | . . . . . Impact Weapon . | . . . . . Slashing Weapon . | . . . . . Piercing Weapon . | . . . . . Special Melee Weapon . | . . . . . Unidentified Prototypes . | . . . . . Parts Lost 8 | . . 2 4 2 Power 1 | . . . . 1 Propulsion 2 | . . 1 1 . Utility 1 | . . 1 . . Weapon 4 | . . . 3 1 Highest Loss Streak 3 | . . 2 3 2 To Critical Strikes . | . . . . . Average Backups 5 | 2 5 7 8 5 Power . | . 1 1 1 1 Propulsion 1 | 1 2 2 2 1 Utility 1 | . . 2 1 1 Weapon 1 | . 1 2 3 1 Tool/Special . | . . . . . Unused Backups 3 | . . . . 3 Power 1 | . . . . 1 Propulsion . | . . . . . Utility 1 | . . . . 1 Weapon 1 | . . . . 1 Tool/Special . | . . . . . Average Slot Usage (%) 88 | . 99 85 87 75 Engine 6 | . 14 7 . . Core 7 | . . 6 14 13 Leg 21 | . 25 6 14 28 Wheel 5 | . 2 18 13 . Storage 11 | . 14 14 18 . Protection 9 | . 13 3 1 14 Energy Gun 15 | . 22 18 24 . Ballistic Gun 8 | . 5 9 . 18 Peak Build Rating 15 | 6 7 10 13 15 Average Rating 9 | 4 6 7 10 13 On Entrance 6 | . 6 7 10 9 Avg Prop Armor Cover (%) 8 | . . 6 8 . Naked Turns . | . . . . . Heaviest Build 33 | 13 29 29 33 15 Greatest Support 20 | 20 20 10 10 20 Greatest Overweight (x) 10 | 1 1 2 10 . Average Overweight (x) . | . . 2 2 . Largest Inventory Capacity 15 | 8 15 15 15 15 Average Capacity 9 | 7 9 15 15 5 Most Carried 9 | 4 7 9 9 7 Average Carried 5 | 3 5 7 8 5 Final Capacity 15 | 8 15 15 15 5 Final Carried 9 | 4 7 9 8 4 Class Distribution -------------------- 91% | Mutant 8% | Scavenger-Mutant Dominant Class ---------------- Mutant | -10/Materials Mutant | -10/Mines Mutant | -10/Subcaves Mutant | -8/Recycling Resources | -11 -10 -10 -10 -8 ----------- Run | Yrd Mat Min Sub Rec Matter Collected 398 | 231 69 62 36 . Remotely . | . . . . . Salvage Created 324 | . 231 38 38 17 Parts 24 | . 14 5 5 . Haulers Intercepted 2 | . 2 . . . Recyclers Shooed . | . . . . . Parts Field Recycled . | . . . . . Retrieved Matter . | . . . . . Parts Self-Destructed 16 | . . . 16 . Prevented . | . . . . . Parts Restored . | . . . . . Kills | -11 -10 -10 -10 -8 ------- Run | Yrd Mat Min Sub Rec Combat Hostiles Destroyed 11 | . 6 1 3 1 Guns 11 | . 6 1 3 1 Classes Destroyed 4 | . 3 1 . . Builder 1 | . 1 . . . Hauler 2 | . 2 . . . Swarmer 10 | . 6 . 3 1 Grunt 1 | . . 1 . . Best Kill Streak 7 | . 7 1 3 1 Combat Bots Only 4 | . 4 1 3 1 Max Kills in Single Turn 1 | . 1 1 1 1 Gunslinging . | . . . . . Exploded . | . . . . . Melee . | . . . . . Uniques/NPCs Destroyed . | . . . . . Combat | -11 -10 -10 -10 -8 -------- Run | Yrd Mat Min Sub Rec Hostile Shots Fired 169 | . 24 18 107 20 Missed 56 | . 8 7 34 7 Hits 113 | . 16 11 73 13 Melee 4 | . . . . 4 Projectile 109 | . 16 11 73 9 AOE 1 | . . 1 . . Critical Strikes 2 | . . . 1 1 Damage Taken 1087 | . 130 170 524 263 Core 258 | . 14 . 155 89 Absorbed by Shields . | . . . . . Core Remaining (%) 100 | 100 . . . . Volleys Fired 70 | . 42 9 16 3 Largest 2 | . 2 2 2 2 Hottest 105 | . 80 60 105 50 Shots Fired 93 | . 52 18 19 4 Gun 93 | . 52 18 19 4 Cannon . | . . . . . Launcher . | . . . . . Special . | . . . . . Kinetic 25 | . 12 9 . 4 Thermal 66 | . 38 9 19 . Explosive . | . . . . . Electromagnetic 2 | . 2 . . . Robot Hit Streak 13 | . 13 2 3 1 Robot Miss Streak 4 | . 3 4 4 3 Penetration Max . | . . . . . Secondary Targets . | . . . . . Shots Hit Robots 47 | . 33 5 7 2 Core Hits 19 | . 11 2 3 3 Critical Kills 1 | . . 1 . . Critical Parts Destroyed . | . . . . . Critical Strikes 1 | . . 1 . . Destroy 1 | . . 1 . . Melee Attacks . | . . . . . Impact . | . . . . . Slashing . | . . . . . Piercing . | . . . . . Sneak Attacks . | . . . . . Combat Hostiles . | . . . . . Follow-up Attacks . | . . . . . Damage Inflicted 634 | . 381 60 150 43 Guns 616 | . 372 60 143 41 Cannons . | . . . . . Explosions . | . . . . . Melee . | . . . . . Ramming 18 | . 9 . 7 2 Kinetic 160 | . 91 28 . 41 Thermal 456 | . 281 32 143 . Explosive . | . . . . . Electromagnetic . | . . . . . Impact . | . . . . . Slashing . | . . . . . Piercing . | . . . . . Highest Corruption . | . . . . . Average Corruption . | . . . . . Corruption Purged . | . . . . . Corruption Blocked . | . . . . . Overload Shots . | . . . . . Overflow Damage . | . . . . . Projectiles . | . . . . . Explosions . | . . . . . Melee . | . . . . . Knockbacks . | . . . . . Impact . | . . . . . Kinetic . | . . . . . Secondary . | . . . . . Self-Inflicted Damage 3 | . . . 3 . Shots . | . . . . . Rammed 3 | . . . 3 . Targets Rammed 5 | . 1 . 3 1 Kicked 2 | . 1 . . 1 Crushed . | . . . . . Highest Temperature 110 | . 46 110 42 9 Average Temperature 27 | . 13 70 23 6 Received Heat Transfer 342 | . . 96 246 . Siege Activations . | . . . . . Martial Activations . | . . . . . Shielding Activations . | . . . . . Robots Disrupted . | . . . . . Combat Hostiles . | . . . . . Robots Corrupted . | . . . . . Combat Hostiles . | . . . . . Parts Fried . | . . . . . Impact Corruptions . | . . . . . Robots Melted . | . . . . . Combat Hostiles . | . . . . . Parts Melted . | . . . . . Heat Transferred 1059 | . 650 75 334 . Parts Sabotaged . | . . . . . Parts Stolen . | . . . . . Parts Stripped . | . . . . . Power Chain Reactions . | . . . . . Alert | -11 -10 -10 -10 -8 ------- Run | Yrd Mat Min Sub Rec Maximum Alert Level . | . . . . . Low Security (%) 100 | 100 100 100 . 100 Level 1 . | . . . . . Level 2 . | . . . . . Level 3 . | . . . . . Level 4 . | . . . . . Level 5 . | . . . . . High Security . | . . . . . Max Security . | . . . . . Peak Influence 107 | . 107 30 . 20 Initial 16 | . . 16 . . Average 21 | . 40 16 . . Influence Increases 344 | . 179 30 115 20 Destroy 0b10 Robot/C 220 | . 120 20 60 20 Destroy 0b10 Robot/NC 15 | . 15 . . . Destroy Leader 44 | . 24 10 10 . Successful Hack 5 | . 5 . . . Lose Combat Pursuer 60 | . 15 . 45 . Influence Decreases 344 | . 135 64 125 20 Entered New Map 34 | . . 28 6 . Time Decay 240 | . 135 26 79 . Lost Part 70 | . . 10 40 20 Squads Dispatched 1 | . 1 . . . Investigation 1 | . 1 . . . Extermination . | . . . . . Reinforcement . | . . . . . Assault . | . . . . . Garrison . | . . . . . Intercept . | . . . . . Searches Triggered . | . . . . . Construction Impeded . | . . . . . Haulers Reinforced . | . . . . . Active Scanning Responses . | . . . . . Cargo Convoy Interrupts . | . . . . . Stealth | -11 -10 -10 -10 -8 --------- Run | Yrd Mat Min Sub Rec Distress Signals . | . . . . . Communications Jammed . | . . . . . Distress Signals . | . . . . . Times Spotted 27 | . 9 2 13 3 Peak Tracking Total 7 | . 3 2 7 3 Tactical Retreats 2 | . 1 . 1 . Traps | -11 -10 -10 -10 -8 ------- Run | Yrd Mat Min Sub Rec Traps Triggered 1 | . 1 . . . Indirectly . | . . . . . Trap Hack Attempts . | . . . . . Triggered . | . . . . . Disarmed . | . . . . . Reprogrammed . | . . . . . Reused . | . . . . . Traps Extracted . | . . . . . Installed . | . . . . . Triggered . | . . . . . Machines | -11 -10 -10 -10 -8 ---------- Run | Yrd Mat Min Sub Rec Machines Disabled . | . . . . . Max in Single Turn . | . . . . . Machines Repaired . | . . . . . Machines Dismantled . | . . . . . Machines Sabotaged . | . . . . . Overloaded Fab Kills . | . . . . . Hacking | -11 -10 -10 -10 -8 --------- Run | Yrd Mat Min Sub Rec Machines Accessed 3 | . 3 . . . Terminals 2 | . 2 . . . Fabricators . | . . . . . Repair Stations 1 | . 1 . . . Recycling Units . | . . . . . Scanalyzers . | . . . . . Garrison Access . | . . . . . Total Hacks 7 | . 7 . . . Successful 3 | . 3 . . . Failed 4 | . 4 . . . Catastrophic 2 | . 2 . . . Database Lockouts . | . . . . . Manual 4 | . 4 . . . Terminals 6 | . 6 . . . Fabricators . | . . . . . Repair Stations 1 | . 1 . . . Recycling Units . | . . . . . Scanalyzers . | . . . . . Garrison Access . | . . . . . Terminal Hacks 1 | . 1 . . . Maintenance Status 1 | . 1 . . . Fabricator Hacks . | . . . . . Repair Station Hacks 1 | . 1 . . . Refit 1 | . 1 . . . Recycling Unit Hacks . | . . . . . Scanalyzer . | . . . . . Garrison Access Hacks . | . . . . . Unauthorized Hacks 1 | . 1 . . . Terminals 1 | . 1 . . . Botnet 1 | . 1 . . . Fabricators . | . . . . . Repair Stations . | . . . . . Recycling Units . | . . . . . Scanalyzers . | . . . . . Garrison Access . | . . . . . Data Cores Recovered . | . . . . . Used . | . . . . . Hacking Detections 1 | . 1 . . . Full Trace Events . | . . . . . Feedback Events . | . . . . . Feedback Blocked . | . . . . . Robot Schematics Acquired . | . . . . . Robots Built . | . . . . . Authchips . | . . . . . Time . | . . . . . Total Robot Build Rating . | . . . . . Part Schematics Acquired . | . . . . . Parts Built . | . . . . . Authchips . | . . . . . Time . | . . . . . Total Part Build Rating . | . . . . . Part Studies Acquired . | . . . . . Parts Repaired . | . . . . . Time . | . . . . . Parts Recycled . | . . . . . Recycled Matter . | . . . . . Retrieved Matter . | . . . . . Retrieved Components . | . . . . . Parts Scanalyzed . | . . . . . Part Schematics Acquired . | . . . . . Parts Damaged . | . . . . . Bothacking | -11 -10 -10 -10 -8 ------------ Run | Yrd Mat Min Sub Rec Used RIF Installer . | . . . . . Robots Hacked . | . . . . . Non-combat . | . . . . . Combat . | . . . . . Robot Hacks Applied . | . . . . . Relay Couplers Released . | . . . . . Fabnet Peak Effective % . | . . . . . Robots Rewired . | . . . . . Allies Hacked . | . . . . . Hacks Repelled . | . . . . . Allies | -11 -10 -10 -10 -8 -------- Run | Yrd Mat Min Sub Rec Total Allies . | . . . . . Largest Group . | . . . . . Highest-Rated Group . | . . . . . Highest-Rated Ally . | . . . . . Total Orders . | . . . . . Ally Attacks . | . . . . . Total Damage . | . . . . . Kills . | . . . . . Allies Corrupted . | . . . . . Allies Melted . | . . . . . Intel | -11 -10 -10 -10 -8 ------- Run | Yrd Mat Min Sub Rec Active Infowar (turns) . | . . . . . Robot Analysis Total . | . . . . . Derelict Logs Recovered 1 | . . . 1 . Drone Launches . | . . . . . Drone Recoveries . | . . . . . Exploration | -11 -10 -10 -10 -8 ------------- Run | Yrd Mat Min Sub Rec Turns Passed 1031 | 58 386 79 222 286 Spaces Moved 617 | 38 228 23 110 218 Core 7 | 6 . . 1 . Treads . | . . . . . Legs 486 | 32 187 15 34 218 Wheels 124 | . 41 8 75 . Hover . | . . . . . Flight . | . . . . . Fastest Speed 50 | 50 95 110 110 120 Average Speed 131 | 118 123 207 161 120 Slowest Speed 550 | 190 190 260 550 120 Overloaded Moves . | . . . . . Propulsion Burnouts . | . . . . . Robots Hopped . | . . . . . Potential Cave-ins . | . . . . . Cave-ins Triggered . | . . . . . Exploration Rate (%) 20 | 3 37 9 12 39 Regions Visited 4 Branch Regions 3 Pre-discovered Areas . | . . . . . Known Exits Taken . | . . . . . Unknown Exits Taken 4 | 1 1 1 1 . Scrap Searched . | . . . . . Spaces Dug . | . . . . . Terrain Destroyed . | . . . . . Melee . | . . . . . Projectile . | . . . . . AOE . | . . . . . Terrain Rammed . | . . . . . Walls Destroyed . | . . . . . Machines Disabled . | . . . . . Actions | -11 -10 -10 -10 -8 --------- Run | Yrd Mat Min Sub Rec Total 738 | 48 278 36 135 241 Wait 5 | . . . 3 2 Move 613 | 37 227 22 109 218 Hop . | . . . . . Pick Up 11 | 5 3 2 1 . Fast Attach 8 | 5 . 1 . 2 Attach 5 | 1 . . 2 2 Detach 1 | . . . . 1 Swap 8 | . 4 2 1 1 Drop 5 | . 1 . . 4 Fire 70 | . 42 9 16 3 Melee . | . . . . . Ram 3 | . . . 3 . Kick 2 | . 1 . . 1 Crush . | . . . . . Escape Stasis . | . . . . . Rewire 7 | . . . . 7 Trap . | . . . . . Miscellaneous . | . . . . . Route ------- -11/Scrapyard -10/Materials -10/Mines -10/Subcaves (discovered 3 exits: *Mat x2 / *Rec) -8/Recycling History --------- Turn | Location | Event 42 | -11/Scrapyard | Discovered new exit (range 12) 59 | -11/Scrapyard | Entered Materials 307 | -10/Materials | Build established: Mutant 423 | -10/Materials | Discovered new exit (range 16) 445 | -10/Materials | Entered Mines 509 | -10/Mines | Discovered new exit (range 7) 524 | -10/Mines | Entered Subcaves 525 | -10/Subcaves | Approached by a straggling Scientist 547 | -10/Subcaves | Discovered new exit (range 8) 676 | -10/Subcaves | Identified exit to Materials 701 | -10/Subcaves | Shifting Twisted Machinery released Mak. Light Armor Plating 705 | -10/Subcaves | Shifting Twisted Machinery released Sub. Beam Cannon 719 | -10/Subcaves | Discovered new exit (range 11) 735 | -10/Subcaves | Core integrity fell below 50% 746 | -10/Subcaves | Entered Recycling 747 | -8/Recycling | Met a Zionite searching for Scraptown 771 | -8/Recycling | Lost 3 parts (1n2w) 1028 | -8/Recycling | Core integrity fell below 20% 1032 | -8/Recycling | Destroyed by H-55 Commando with Gauss Rifle Last Messages --------------- 00887_ Attempting to rewire R-06 Scavenger. 00887_ R-06 Scavenger is unpowered. 01011_ Attempting to rewire S-10 Pest. 01011_ S-10 Pest is dormant, system inaccessible. 01013_ Attempting to rewire A-02 Transporter. 01013_ A-02 Transporter is broken beyond repair. 01018_ Attempting to rewire S-10 Pest. 01019_ S-10 Pest destroyed. 01019_ L-31 Rogue springs to life. 01019_ Hpw. Shotgun severed. 01019_ H-55 Commando springs to life. 01020_ S-10 Pest springs to life. 01022_ Penetrated by Slug. 01022_ Hpw. Shotgun destroyed. 01023_ Lgt. Nuclear Core destroyed. 01026_ Penetrated by Slug. 01026_ R-06 Scavenger collects Hpw. Shotgun. 01027_ Kicked R-06 Scavenger. 01029_ Slug penetrates R-06 Scavenger. 01032_ Slug penetrates Wall. Map ----- +----------------------------------------------------+ | ????????????????????????????????????????????????? | | ????????????????????????????????????????????????? | | ????????????????????????????????????????????????? | | ????????????????????????????????????????????????? | | ????????????????????????????????????????????????? | | ????????????????????????????????????????????????? | | ????????????????????????????????????????????????? | | ????????????????????????????????????????????????? | | ????????????????????????????????????????????????? | | ????????????????????????????????????????????????? | | ????????????????????????????????????????????????? | | ???????????????????????????###??????????????????? | | ?????????????????????????# ??????????????????? | | ??????????????????######?" ?????????????????? | | ??????????????????#! #?? ?????????????????? | | ??????????????????#] #?? ?????????????????? | | ??????????????????# #??? ???????#?????????? | | ??????????????????+ =#??? """"" #?????????? | | ??????????????????# *%!#???? """"" #?????????? | | ??????????????????# !#???? """"" #?????????? | | ??????????????????+ = [#????? """"" ??????????? | | ??????????????????# !#????? ????????????? | | ??????????????????# ! #?????? ?????????????? | | ??????????????????#dh #?????? ??????????????? | | ??????????????????# s ########+##??????????????? | | ??????????????????#u l@ #??????????????? | | ??????????????????# Y! ####### #??????????????? | | ??????????????????######?????# #??????????????? | | ?????????????????????????????# #??????????????? | | ?????????????????????????????# #??????????????? | | ?????????????????????????????# #??????????????? | | ?????????????????????????????# #??????????????? | | ?????????????????????????????# #??????????????? | | ?????????????????????????????# #??????????????? | | ??????????????????????????##?# #??????????????? | | ???????????????????######## ## #??????????????? | | ???????????????????# # #??????????????? | | ???????????????????# # #??????????????? | | ???????????????????# # #????????###### | | ???????????????????# + ########## | | ???????????????????# # + | | ???????????????????# # ######## | | ???????????????????# # #??????# | | ???????????????????# # #??????# | | ???????????????????#########+# #??????# | | ?????????????????????????????##### #??????# | | ?????????????????????????????????# #??????# | | ?????????????????????????????????# #??????# | | ?????????????????????????????????# ############## | | ?????????????????????????????????# | +----------------------------------------------------+ Best States ------------- Heat Dissipation 25 Energy Generation 14 Energy Capacity 260 Matter Stores 300 Matter Capacity 300 Sight Range 16 Terrain Scan Density 10 Armor Coverage 100 Evasion (%) 55 Item Schematics ----------------- None Robot Schematics ------------------ None Fabricated ------------ Nothing Repaired ---------- Nothing Studied --------- None Alien Tech Used ----------------- None Achievements -------------- None Challenges ------------ None Game ------ Seed TiamatMediumWings Manual? 0 Play Time 00:16:02 Cumulative 21.1 hours Start 2026.01.11 @ 11:37:06 End 2026.01.11 @ 11:51:47 Sessions 1 Manual Loads 0 Difficulty Rogue Special Mode None Game No. 26 Rogue 26 Adventurer 0 Explorer 0 Win Type - Total 0 Types 0/0/0/0/0/0/0/0/0/0 Lore% 15 Gallery% 26 Achievement% 19 Wizard Run 0 Options --------- Layout 0 ASCII 0 Keyboard 1 Movement Numpad Keybinds 0 Fullscreen 2 Font 18/SmallcapsGlow Map View 112x50 Zoom Use 0% Tactical HUD 1 Map Filters NONE Filters NONE Steam 1 RUN: 5b8eedf6-4567-4fe1-9673-506cd8a72ecc